Workbook

Sheet Matrix
A4: Komponente | B4: Flächen Eingabe Flᵢ | C4: Sollwerte Kalgas cᵢ(Soll) | D4: Grund- kalibrierung GLKᵢ | E4: letzte Kalibrierung LKᵢ | F4: Response Faktor RFᵢ | G4: Korrektur Polynom Koeffizient Aᵢ | H4: Korrektur Polynom Koeffizient Bᵢ | I4: Korrektur Polynom Koeffizient Cᵢ | J4: Korrektur Polynom Koeffizient Dᵢ | K4: Berechnete Anteile unnormiert c₁ᵢ | L4: Faktor | M4: Berechnete Anteile normiert c₂ᵢ | N4: Korrektur für Anteile c₃ᵢ | O4: Korrigierte Anteile (Endergebnis) c₄ᵢ
A5: Stickstoff | B5: 15758.58043 | C5: 4.0222 | D5: 6.540498894e-05 | E5: 6.540498894e-05 | F5: 1 | G5: 0 | H5: 0.00559 | I5: -0.0029 | J5: 9.18e-05 | K5: 1.030689779 | L5: =IFERROR(100/K25,0) -> 1.004812081 | M5: =$K5*$L$5 -> 1.035649541 | N5: -0.002781337753 | O5: =$M5+$N5 -> 1.032868203
A6: Methan | B6: 1314911.125 | C6: 89.02 | D6: 6.05141797e-05 | E6: 6.05141797e-05 | F6: 1 | K6: 79.57076811 | M6: =$K6*$L$5 -> 79.95366908 | N6: -1.449687152 | O6: =$M6+$N6 -> 78.50398193
A7: Kohlendioxid | C7: 2.4767 | D7: 4.210567179e-05 | E7: 4.210567179e-05 | F7: 1 | K7: 0 | M7: 0 | N7: 0 | O7: 0
A8: Ethan | C8: 2.4806 | D8: 3.882648181e-05 | E8: 3.882648181e-05 | F8: 1 | K8: 0 | M8: 0 | N8: 0 | O8: 0
A9: Propan | B9: 290362.9733 | C9: 0.9978 | D9: 3.096979419e-05 | E9: 3.096979419e-05 | F9: 1 | K9: 8.992481523 | M9: 9.035754071 | N9: 0 | O9: 9.035754071
A10: iso-Butan | B10: 25739.59914 | C10: 0.2014 | D10: 2.74996822e-05 | E10: 2.74996822e-05 | F10: 1 | K10: 0.7078307963 | M10: 0.7112369353 | N10: 0 | O10: 0.7112369353
A11: n-Butan | B11: 27303.935 | C11: 0.2004 | D11: 2.560521012e-05 | E11: 2.560521012e-05 | F11: 1 | K11: 0.6991229927 | M11: 0.702487229 | N11: 0 | O11: 0.702487229
A12: neo-Pentan | D12: 0 | E12: 0 | K12: 0 | M12: 0 | N12: 0 | O12: 0
A13: iso-Pentan | D13: 0 | E13: 0 | K13: 0 | M13: 0 | N13: 0 | O13: 0
A14: n-Pentan | D14: 0 | E14: 0 | K14: 0 | M14: 0 | N14: 0 | O14: 0
A15: C6+ | D15: 0 | E15: 0 | K15: 0 | M15: 0 | N15: 0 | O15: 0
A16: n-Hexan | D16: 0 | E16: 0 | K16: 0 | M16: 0 | N16: 0 | O16: 0
A17: n-Heptan | D17: 0 | E17: 0 | K17: 0 | M17: 0 | N17: 0 | O17: 0
A18: n-Octan | D18: 0 | E18: 0 | K18: 0 | M18: 0 | N18: 0 | O18: 0
A19: n-Nonan | D19: 0 | E19: 0 | K19: 0 | M19: 0 | N19: 0 | O19: 0
A20: Sauerstoff | B20: 72623.46886 | C20: 0.4016 | D20: 6.935264589e-05 | E20: 6.935264589e-05 | F20: 1 | K20: 5.036629719 | M20: 5.060866388 | N20: 0 | O20: 5.060866388
A21: Helium | D21: 0 | E21: 0 | K21: 0 | M21: 0 | N21: 0 | O21: 0
A22: Wasserstoff | B22: 898.8548571 | C22: 0.1993 | D22: 0.003875568445 | E22: 0.003875568445 | F22: 1 | G22: 0 | H22: -0.0158 | I22: -0.0312 | J22: -0.0241 | K22: 3.483573521 | M22: 3.500336759 | N22: 1.452468489 | O22: 4.952805248
A23: Argon | D23: 0 | E23: 0 | K23: 0 | M23: 0 | N23: 0 | O23: 0
A24: Reserve | D24: 0 | E24: 0 | K24: 0 | M24: 0 | N24: 0 | O24: 0
A25: Summe | C25: =SUM(C5:C24) -> 100 | K25: =SUM(K5:K24) -> 99.52109644 | M25: =SUM(M5:M24) -> 100 | O25: =SUM(O5:O24) -> 100

Sheet Testdaten
A1: Soll 9m | B1: Ist 9M | C1: Ist Methan | D1: Ist B5K | E1: Ist 6L | F1: Ist 6L | G1: Ist6h | H1: p19k | I1: vsl1 | J1: vsl2
A2: 4.0222 | B2: 61496.83786 | C2: 1664346.946 | D2: 30509.554 | E2: 212602.442 | F2: 6610.552857 | G2: 6610.552857 | H2: 47317.779 | I2: 296412.1161 | J2: 15758.58043
A3: 89.02 | B3: 1471060.179 | D3: 1469308.107 | E3: 1325820.821 | F3: 1412091.536 | G3: 1412091.536 | H3: 1445018.661 | I3: 1184091.625 | J3: 1314911.125
A4: 2.4767 | B4: 58821.05414 | D4: 129702.5539 | E4: 23971.23129 | F4: 43588.09886 | G4: 43588.09886 | H4: 85814.19314
A5: 2.4806 | B5: 63889.38386 | E5: 76155.29914 | F5: 245011.1831 | G5: 245011.1831 | H5: 9136.898571
A6: 0.9978 | B6: 32218.48986 | E6: 15872.39229 | F6: 111334.9253 | G6: 111334.9253 | H6: 153880.2947 | J6: 290362.9733
A7: 0.2014 | B7: 7323.721 | H7: 10984.914 | I7: 143681.4844 | J7: 25739.59914
A8: 0.2004 | B8: 7826.532143 | E8: 3797.343429 | F8: 38701.40786 | G8: 38701.40786 | H8: 11645.13857 | I8: 153729.4689 | J8: 27303.935
A17: 0.4016 | B17: 5790.694714 | D17: 14453.052 | H17: 4398.899857 | J17: 72623.46886
A19: 0.1993 | B19: 51.42471429 | D19: 439.6438571 | H19: 75.158 | J19: 898.8548571
A29: Gas | B29: Methan | C29: B-5K | D29: 6L | E29: 6H | F29: L1-8K | G29: P1-9K | H29: 9M | I29: 11M | J29: 11D | K29: H1-11K | L29: VSL 1 | M29: VSL 2 | O29: VSL1 normiert
A30: Flasche | B30: unbekannt | C30: 3850F | D30: 0550D | E30: 2930B | F30: --- | G30: 1295C | H30: D844356 | I30: --- | J30: --- | K30: --- | L30: 7800740 | M30: 7800063
A31: Methan | B31: 100 | C31: 89.4847 | D31: 81.0522 | E31: 83.9742 | F31: 0 | G31: 87.0348 | H31: 89.02 | I31: 0 | J31: 0 | K31: 0 | L31: 72.03 | M31: 78.67 | O31: =L31*100/$L$51 -> 72.05594014 | P31: =M31*100/$M$51 -> 78.67314693
A32: Ethan | B32: 0 | C32: 0 | D32: 2.9999 | E32: 9.4067 | F32: 0 | G32: 0.3492 | H32: 2.4806 | I32: 0 | J32: 0 | K32: 0 | L32: 0 | M32: 0 | O32: =L32*100/$L$51 -> 0 | P32: =M32*100/$M$51 -> 0
A33: Propan | B33: 0 | C33: 0 | D33: 0.4984 | E33: 3.3954 | F33: 0 | G33: 4.7438 | H33: 0.9978 | I33: 0 | J33: 0 | K33: 0 | L33: 0 | M33: 8.97 | O33: 0 | P33: 8.970358814
A34: iso-Butan | B34: 0 | C34: 0 | D34: 0 | E34: 0 | F34: 0 | G34: 0.2997 | H34: 0.2014 | I34: 0 | J34: 0 | K34: 0 | L34: 4.029 | M34: 0.703 | O34: 4.030450962 | P34: 0.7030281211
A35: n-Butan | B35: 0 | C35: 0 | D35: 0.0998 | E35: 1.0011 | F35: 0 | G35: 0.2991 | H35: 0.2004 | I35: 0 | J35: 0 | K35: 0 | L35: 3.995 | M35: 0.696 | O35: 3.996438718 | P35: 0.6960278411
A36: neo-Pentan | B36: 0 | C36: 0 | D36: 0 | E36: 0 | F36: 0 | G36: 0 | H36: 0 | I36: 0 | J36: 0 | K36: 0 | L36: 0 | M36: 0 | O36: 0 | P36: 0
A37: iso-Pentan | B37: 0 | C37: 0 | D37: 0 | E37: 0 | F37: 0 | G37: 0 | H37: 0 | I37: 0 | J37: 0 | K37: 0 | L37: 0 | M37: 0 | O37: 0 | P37: 0
A38: n-Pentan | B38: 0 | C38: 0 | D38: 0 | E38: 0 | F38: 0 | G38: 0 | H38: 0 | I38: 0 | J38: 0 | K38: 0 | L38: 0 | M38: 0 | O38: 0 | P38: 0
A39: n-Hexan | B39: 0 | C39: 0 | D39: 0 | E39: 0 | F39: 0 | G39: 0 | H39: 0 | I39: 0 | J39: 0 | K39: 0 | L39: 0 | M39: 0 | O39: 0 | P39: 0
A40: Wasserstoff | B40: 0 | C40: 1.9616 | D40: 0 | E40: 0 | F40: 0 | G40: 0.2977 | H40: 0.1993 | I40: 0 | J40: 0 | K40: 0 | L40: 0 | M40: 4.97 | O40: 0 | P40: 4.970198808
A41: Sauerstoff | B41: 0 | C41: 1.0184 | D41: 0 | E41: 0 | F41: 0 | G41: 0.3014 | H41: 0.4016 | I41: 0 | J41: 0 | K41: 0 | L41: 0 | M41: 4.97 | O41: 0 | P41: 4.970198808
A42: Stickstoff | B42: 0 | C42: 2.0275 | D42: 14.3296 | E42: 0.4221 | F42: 0 | G42: 3.0849 | H42: 4.0222 | I42: 0 | J42: 0 | K42: 0 | L42: 19.91 | M42: 1.017 | O42: 19.91717018 | P42: 1.017040682
A43: Kohlendioxid | B43: 0 | C43: 5.5078 | D43: 1.0201 | E43: 1.8005 | F43: 0 | G43: 3.5894 | H43: 2.4767 | I43: 0 | J43: 0 | K43: 0 | L43: 0 | M43: 0 | O43: 0 | P43: 0
A44: Helium | B44: 0 | C44: 0 | D44: 0 | E44: 0 | F44: 0 | G44: 0 | H44: 0 | I44: 0 | J44: 0 | K44: 0 | L44: 0 | M44: 0 | O44: 0 | P44: 0
B45: 0 | C45: 0 | D45: 0 | E45: 0 | F45: 0 | G45: 0 | H45: 0 | I45: 0 | J45: 0 | K45: 0 | L45: 0 | M45: 0 | O45: 0 | P45: 0
B46: 0 | C46: 0 | D46: 0 | E46: 0 | F46: 0 | G46: 0 | H46: 0 | I46: 0 | J46: 0 | K46: 0 | L46: 0 | M46: 0 | O46: 0 | P46: 0
B47: 0 | C47: 0 | D47: 0 | E47: 0 | F47: 0 | G47: 0 | H47: 0 | I47: 0 | J47: 0 | K47: 0 | L47: 0 | M47: 0 | O47: 0 | P47: 0
B48: 0 | C48: 0 | D48: 0 | E48: 0 | F48: 0 | G48: 0 | H48: 0 | I48: 0 | J48: 0 | K48: 0 | L48: 0 | M48: 0 | O48: 0 | P48: 0
B49: 0 | C49: 0 | D49: 0 | E49: 0 | F49: 0 | G49: 0 | H49: 0 | I49: 0 | J49: 0 | K49: 0 | L49: 0 | M49: 0 | O49: 0 | P49: 0
B50: 0 | C50: 0 | D50: 0 | E50: 0 | F50: 0 | G50: 0 | H50: 0 | I50: 0 | J50: 0 | K50: 0 | L50: 0 | M50: 0 | O50: 0 | P50: 0
A51: Summe | B51: 100 | C51: 100 | D51: 100 | E51: 100 | F51: 0 | G51: 100 | H51: 100 | I51: 0 | J51: 0 | K51: 0 | L51: 99.964 | M51: 99.996 | O51: =SUM(O31:O50) -> 100 | P51: 100
A52: Methan | B52: 1664346.946 | C52: 1469308.107 | D52: 1325820.821 | E52: 1412091.536 | G52: 1445018.661 | H52: 1471060.179 | L52: 1184091.625 | M52: 1314911.125
A53: Ethan | D53: 76155.29914 | E53: 245011.1831 | G53: 9136.898571 | H53: 63889.38386
A54: Propan | D54: 15872.39229 | E54: 111334.9253 | G54: 153880.2947 | H54: 32218.48986 | M54: 290362.9733
A55: iso-Butan | G55: 10984.914 | H55: 7323.721 | L55: 143681.4844 | M55: 25739.59914
A56: n-Butan | D56: 3797.343429 | E56: 38701.40786 | G56: 11645.13857 | H56: 7826.532143 | L56: 153729.4689 | M56: 27303.935
A57: neo-Pentan
A58: iso-Pentan
A59: n-Pentan
A60: n-Hexan
A61: Wasserstoff | C61: 439.6438571 | G61: 75.158 | H61: 51.42471429 | M61: 898.8548571
A62: Sauerstoff | C62: 14453.052 | G62: 4398.899857 | H62: 5790.694714 | M62: 72623.46886
A63: Stickstoff | C63: 30509.554 | D63: 212602.442 | E63: 6610.552857 | G63: 47317.779 | H63: 61496.83786 | L63: 296412.1161 | M63: 15758.58043
A64: Kohlendioxid | C64: 129702.5539 | D64: 23971.23129 | E64: 43588.09886 | G64: 85814.19314 | H64: 58821.05414
A65: Helium
